fUST/lending_fUST_20251127
["ID","MTS","AMOUNT","RATE_DAILY","PERIOD"]
[394970604,1764228645018,-48.23559585,6.485e-05,2]
[394970605,1764228645028,-500.0,6.485e-05,2]
[394970606,1764228645038,-500.0,6.485e-05,2]
[394970607,1764228645047,-500.0,6.485e-05,2]
[394970608,1764228645057,-500.0,6.485e-05,2]
[394970609,1764228645066,-500.0,6.485e-05,2]
[394970610,1764228645075,-648.57291917,6.485e-05,2]
[394970611,1764228645085,-500.0,6.485e-05,2]
[394970612,1764228645094,-500.0,6.485e-05,2]
[394970613,1764228645103,-500.0,6.485e-05,2]
[394970614,1764228645114,-500.0,6.485e-05,2]
[394970615,1764228645123,-500.0,6.485e-05,2]
[394970616,1764228645132,-500.0,6.485e-05,2]
[394970617,1764228645141,-500.0,6.485e-05,2]
[394970618,1764228645151,-500.0,6.485e-05,2]
[394970619,1764228645161,-500.0,6.485e-05,2]
[394970620,1764228645171,-500.0,6.485e-05,2]
[394970621,1764228645182,-500.0,6.485e-05,2]
[394970622,1764228645192,-500.0,6.485e-05,2]
[394970623,1764228645203,-500.0,6.485e-05,2]
[394970624,1764228645213,-500.0,6.485e-05,2]
[394970625,1764228645224,-500.0,6.485e-05,2]
[394970626,1764228645234,-500.0,6.485e-05,2]
[394970627,1764228645243,-500.0,6.485e-05,2]
[394970628,1764228645253,-500.0,6.485e-05,2]
[394970629,1764228645263,-500.0,6.485e-05,2]
[394970630,1764228645273,-500.0,6.485e-05,2]
[394970631,1764228645283,-500.0,6.485e-05,2]
[394970632,1764228645293,-500.0,6.485e-05,2]
[394970633,1764228645305,-500.0,6.485e-05,2]
[394970634,1764228645315,-500.0,6.485e-05,2]
[394970635,1764228645325,-500.0,6.485e-05,2]
[394970636,1764228645337,-500.0,6.485e-05,2]
[394970637,1764228645346,-500.0,6.485e-05,2]
[394970638,1764228645356,-500.0,6.485e-05,2]
[394970639,1764228645366,-500.0,6.485e-05,2]
[394970640,1764228645375,-500.0,6.485e-05,2]
[394970641,1764228645386,-500.0,6.485e-05,2]
[394970642,1764228645395,-500.0,6.485e-05,2]
[394970643,1764228645405,-289.31210135,6.485e-05,2]
[394970644,1764228645415,-500.0,6.485e-05,2]
[394970645,1764228645424,-500.0,6.485e-05,2]
[394970646,1764228645434,-500.0,6.485e-05,2]
[394970647,1764228645446,-500.0,6.485e-05,2]
[394970648,1764228645456,-500.0,6.485e-05,2]
[394970649,1764228645466,-500.0,6.485e-05,2]
[394970650,1764228645476,-500.0,6.485e-05,2]
[394970651,1764228645487,-500.0,6.485e-05,2]
[394970652,1764228645496,-500.0,6.485e-05,2]
[394970653,1764228645506,-500.0,6.485e-05,2]
[394970654,1764228645516,-550.0,6.485e-05,2]
[394970655,1764228645526,-500.0,6.485e-05,2]
[394970656,1764228645535,-500.0,6.485e-05,2]
[394970657,1764228645545,-500.0,6.485e-05,2]
[394970659,1764228645555,-500.0,6.485e-05,2]
[394970660,1764228645565,-326.708073,6.486e-05,2]
[394970661,1764228645574,-326.708073,6.486e-05,2]
[394970662,1764228645586,-326.708073,6.486e-05,2]
[394970663,1764228645600,-326.708073,6.486e-05,2]
[394970664,1764228645610,-47467.41410108,6.486e-05,2]
[394970666,1764228645623,-4635.43008,6.486e-05,2]
[394970667,1764228645634,-7728.459,6.486e-05,2]
[394970668,1764228645653,-4053.37306736,6.486e-05,2]
[394970670,1764228645960,-355.3,6.486e-05,2]
[394970673,1764228814359,514.19558628,0.000215,120]
[394970676,1764229031124,3662.07574558,0.00014,10]
[394970677,1764229039153,2638.7676344,0.00014,10]
[394970714,1764229831801,-176.36742533,6.258e-05,2]
[394970715,1764229831812,-150.0,6.283e-05,2]
[394970716,1764229831823,-1200.0,6.361e-05,2]
[394970717,1764229831834,-1200.0,6.362e-05,2]
[394970718,1764229831844,-300.0,6.362e-05,2]
[394970719,1764229831856,-300.0,6.362e-05,2]
[394970720,1764229831865,-300.0,6.362e-05,2]
[394970721,1764229831876,-300.0,6.362e-05,2]
[394970722,1764229831886,-500.0,6.363e-05,2]
[394970723,1764229831895,-500.85483311,6.363e-05,2]
[394970724,1764229831904,-500.0,6.363e-05,2]
[394970725,1764229831913,-500.0,6.363e-05,2]
[394970726,1764229831924,-500.0,6.363e-05,2]
[394970727,1764229831934,-500.0,6.363e-05,2]
[394970728,1764229831943,-500.4918801,6.363e-05,2]
[394970729,1764229831952,-500.0,6.363e-05,2]
[394970730,1764229831961,-578.86474005,6.363e-05,2]
[394970731,1764229831971,-500.0,6.363e-05,2]
[394970732,1764229831980,-500.0,6.363e-05,2]
[394970733,1764229831989,-615.19579303,6.363e-05,2]
[394970734,1764229831998,-500.0,6.385e-05,2]
[394970735,1764229832007,-388.72481468,6.385e-05,2]
[394970736,1764229832018,-500.0,6.385e-05,2]
[394970737,1764229832029,-500.0,6.385e-05,2]
[394970738,1764229832039,-500.0,6.385e-05,2]
[394970739,1764229832048,-500.0,6.385e-05,2]
[394970740,1764229832058,-500.0,6.385e-05,2]
[394970741,1764229832068,-500.0,6.385e-05,2]
[394970742,1764229832078,-457096.76232983,6.386e-05,2]
[394970743,1764229832099,-610.77441862,6.386e-05,2]
[394970749,1764229840111,-262.64095363,6.386e-05,2]
[394970760,1764230087938,232.70848453,0.00010472,3]
[394970834,1764231032272,-300.0,6.281e-05,2]
[394970836,1764231032281,-150.0,6.282e-05,2]
[394970838,1764231032291,-300.0,6.282e-05,2]
[394970840,1764231032300,-300.0,6.282e-05,2]
[394970842,1764231032310,-300.0,6.282e-05,2]
[394970844,1764231032319,-1200.0,6.283e-05,2]
[394970846,1764231032328,-1200.0,6.283e-05,2]
[394970848,1764231032337,-500.0,6.284e-05,2]
[394970850,1764231032347,-500.0,6.284e-05,2]
[394970852,1764231032356,-500.0,6.284e-05,2]
[394970854,1764231032366,-500.0,6.284e-05,2]
[394970856,1764231032375,-500.0,6.284e-05,2]
[394970859,1764231032385,-500.0,6.284e-05,2]
[394970861,1764231032394,-500.0,6.284e-05,2]
[394970863,1764231032404,-500.0,6.284e-05,2]
[394970865,1764231032413,-500.0,6.284e-05,2]
[394970867,1764231032422,-500.0,6.284e-05,2]
[394970876,1764231032671,-500.0,6.284e-05,2]
[394970878,1764231032681,-269.23109911,6.284e-05,2]
[394970880,1764231032695,-331.9872245,6.285e-05,2]
[394970882,1764231032704,-500.0,6.285e-05,2]
[394970885,1764231032714,-500.0,6.285e-05,2]
[394970886,1764231032723,-417.50244185,6.285e-05,2]
[394970889,1764231032733,-500.0,6.285e-05,2]
[394970891,1764231032742,-45298.01760167,6.286e-05,2]
[394970893,1764231032754,-465.60265351,6.286e-05,2]
[394970895,1764231032765,-557.26,6.286e-05,2]
[394970897,1764231032776,-1819.86175815,6.286e-05,2]
[394970927,1764231038077,-300.0,6.286e-05,2]
[394970929,1764231038090,-462.24761206,6.286e-05,2]
[394970931,1764231038103,-488.57536421,6.286e-05,2]
[394970950,1764231045464,-11468.95755193,6.286e-05,2]
[394970952,1764231045475,-32613.82357182,6.286e-05,2]
[394970955,1764231045490,-596.16442264,6.286e-05,2]
[394970957,1764231045502,-90363.21724187,6.286e-05,2]
[394970959,1764231045513,-8012.06256,6.286e-05,2]
[394970978,1764231046165,-1215.86785834,6.286e-05,2]
[394970979,1764231046176,-2281.28905335,6.286e-05,2]
[394970982,1764231280285,151.0,0.0002,30]
[394971014,1764232164276,250.24315739,5.505e-05,2]
[394971036,1764232232192,-250.24315739,5.693e-05,2]
[394971038,1764232232202,-150.0,5.815e-05,2]
[394971040,1764232232211,-306.0,6.162e-05,2]
[394971042,1764232232222,-300.0,6.162e-05,2]
[394971044,1764232232235,-110.62684261,6.162e-05,2]
[394971046,1764232232247,-165.37315739,6.162e-05,2]
[394971048,1764232232258,-1000.07577841,6.162e-05,2]
[394971052,1764232232273,-176.92422159,6.162e-05,2]
[394971055,1764232232282,-127.89780025,6.163e-05,2]
[394971069,1764232238206,-568.04179401,6.086e-05,2]
[394971070,1764232238217,-360.82507419,6.086e-05,2]
[394971071,1764232238228,-424.50976335,6.086e-05,2]
[394971072,1764232238276,-1336.524237,6.086e-05,2]
[394971079,1764232240549,-4950.44283594,6.086e-05,2]
[394971080,1764232240610,-83182.8147822,6.086e-05,2]
[394971086,1764232244843,300.0,0.0002,30]
[394971087,1764232244872,-56564.44868819,6.086e-05,2]
[394971099,1764232246574,-1328.55203331,6.086e-05,2]
[394971133,1764232878516,400.0,0.0002,30]
[394971208,1764233110629,219.0,0.00020976,120]
[394971217,1764233130936,176.0,0.00021034,120]
[394971262,1764233409947,164.0,0.00021076,120]
[394971335,1764233436190,171.0,0.00019001,120]
[394971336,1764233437525,171.0,0.00019951,120]
[394971343,1764233438304,-202.0,5.729e-05,2]
[394971344,1764233438314,-150.0,5.846e-05,2]
[394971345,1764233438323,-179.7895359,5.978e-05,2]
[394971346,1764233438358,-120.2104641,5.978e-05,2]
[394971347,1764233438367,-1200.0,5.978e-05,2]
[394971348,1764233438376,-500.0,5.979e-05,2]
[394971349,1764233438394,-990.0,5.979e-05,2]
[394971350,1764233438404,-500.0,5.979e-05,2]
[394971351,1764233438414,-500.0,5.979e-05,2]
[394971352,1764233438423,-500.0,5.979e-05,2]
[394971353,1764233438433,-500.0,5.979e-05,2]
[394971354,1764233438442,-500.0,5.979e-05,2]
[394971355,1764233438451,-500.0,5.979e-05,2]
[394971356,1764233438460,-500.0,5.979e-05,2]
[394971357,1764233438470,-500.0,5.979e-05,2]
[394971358,1764233438480,-500.0,5.979e-05,2]
[394971359,1764233438489,-500.0,5.979e-05,2]
[394971360,1764233438498,-500.0,5.979e-05,2]
[394971361,1764233438507,-500.0,5.979e-05,2]
[394971362,1764233438516,-500.0,5.979e-05,2]
[394971363,1764233438526,-500.0,5.979e-05,2]
[394971364,1764233438535,-500.0,5.979e-05,2]
[394971365,1764233438547,-500.0,5.979e-05,2]
[394971366,1764233438556,-500.0,5.979e-05,2]
[394971367,1764233438571,-273.99293313,5.979e-05,2]
[394971368,1764233438581,-500.0,5.979e-05,2]
[394971369,1764233438590,-500.0,5.979e-05,2]
[394971370,1764233438600,-314.02980666,5.979e-05,2]
[394971371,1764233438615,-159.20261886,5.979e-05,2]
[394971372,1764233438625,-500.0,5.979e-05,2]
[394971373,1764233438634,-500.0,5.979e-05,2]
[394971374,1764233438643,-500.0,5.979e-05,2]
[394971375,1764233438657,-500.0,5.979e-05,2]
[394971376,1764233438667,-500.0,5.979e-05,2]
[394971377,1764233438676,-500.0,5.979e-05,2]
[394971378,1764233438685,-500.0,5.979e-05,2]
[394971379,1764233438695,-500.0,5.979e-05,2]
[394971380,1764233438710,-500.0,5.979e-05,2]
[394971381,1764233438724,-500.0,5.979e-05,2]
[394971382,1764233438737,-500.0,5.979e-05,2]
[394971383,1764233438750,-500.0,5.979e-05,2]
[394971384,1764233438762,-500.0,5.979e-05,2]
[394971385,1764233438774,-262.29446045,5.979e-05,2]
[394971386,1764233438787,-500.0,5.979e-05,2]
[394971387,1764233438800,-500.0,5.979e-05,2]
[394971388,1764233438813,-500.0,5.979e-05,2]
[394971389,1764233438826,-500.0,5.979e-05,2]
[394971390,1764233438838,-500.0,5.979e-05,2]
[394971391,1764233438851,-500.0,5.979e-05,2]
[394971392,1764233438865,-500.0,5.979e-05,2]
[394971393,1764233438879,-500.0,5.979e-05,2]
[394971394,1764233438892,-500.0,5.979e-05,2]
[394971395,1764233438904,-500.0,5.979e-05,2]
[394971396,1764233438917,-500.0,5.979e-05,2]
[394971397,1764233438928,-500.0,5.979e-05,2]
[394971398,1764233438941,-500.0,5.979e-05,2]
[394971399,1764233438954,-500.0,5.979e-05,2]
[394971400,1764233438967,-500.0,5.979e-05,2]
[394971401,1764233438978,-500.0,5.979e-05,2]
[394971402,1764233438989,-500.0,5.979e-05,2]
[394971403,1764233439001,-500.0,5.979e-05,2]
[394971404,1764233439013,-500.0,5.979e-05,2]
[394971405,1764233439025,-476.26825998,5.979e-05,2]
[394971406,1764233439038,-500.0,5.979e-05,2]
[394971407,1764233439050,-500.0,5.979e-05,2]
[394971408,1764233439065,-500.0,5.979e-05,2]
[394971409,1764233439078,-500.0,5.979e-05,2]
[394971410,1764233439092,-500.0,5.979e-05,2]
[394971411,1764233439105,-500.0,5.979e-05,2]
[394971412,1764233439116,-2369.80821261,5.979e-05,2]
[394971413,1764233439127,-2369.80821261,5.979e-05,2]
[394971414,1764233439138,-2369.80821261,5.979e-05,2]
[394971415,1764233439149,-2369.80821261,5.979e-05,2]
[394971416,1764233439162,-2369.80821261,5.979e-05,2]
[394971417,1764233439176,-2369.80821261,5.979e-05,2]
[394971418,1764233439189,-2369.80821261,5.979e-05,2]
[394971419,1764233439202,-2369.80821261,5.979e-05,2]
[394971420,1764233439213,-2369.80821261,5.979e-05,2]
[394971421,1764233439224,-2369.80821261,5.979e-05,2]
[394971422,1764233439239,-2369.80821261,5.979e-05,2]
[394971423,1764233439251,-2369.80821261,5.979e-05,2]
[394971424,1764233439262,-2369.80821261,5.979e-05,2]
[394971425,1764233439273,-2369.80821261,5.979e-05,2]
[394971426,1764233439283,-2369.80821261,5.979e-05,2]
[394971427,1764233439295,-2369.80821261,5.979e-05,2]
[394971428,1764233439306,-2369.80821261,5.979e-05,2]
[394971429,1764233439328,-2369.80821261,5.979e-05,2]
[394971430,1764233439340,-2369.80821261,5.979e-05,2]
[394971431,1764233439353,-2369.80821261,5.979e-05,2]
[394971432,1764233439364,-2369.80821261,5.979e-05,2]
[394971433,1764233439377,-2369.80821261,5.979e-05,2]
[394971434,1764233439390,-2369.80821261,5.979e-05,2]
[394971435,1764233439402,-2369.80821261,5.979e-05,2]
[394971436,1764233439414,-2369.80821261,5.979e-05,2]
[394971437,1764233439425,-2369.80821261,5.979e-05,2]
[394971438,1764233439437,-2369.80821261,5.979e-05,2]
[394971439,1764233439450,-2369.80821261,5.979e-05,2]
[394971440,1764233439461,-2369.80821261,5.979e-05,2]
[394971441,1764233439472,-2369.80821261,5.979e-05,2]
[394971442,1764233439483,-2369.80821261,5.979e-05,2]
[394971443,1764233439495,-2369.80821261,5.979e-05,2]
[394971444,1764233439506,-2369.80821261,5.979e-05,2]
[394971445,1764233439518,-2369.80821261,5.979e-05,2]
[394971446,1764233439530,-2369.80821261,5.979e-05,2]
[394971447,1764233439542,-2369.80821261,5.979e-05,2]
[394971448,1764233439553,-2369.80821261,5.979e-05,2]
[394971449,1764233439567,-2369.80821261,5.979e-05,2]
[394971450,1764233439580,-2369.80821261,5.979e-05,2]
[394971451,1764233439592,-2369.80821261,5.979e-05,2]
[394971452,1764233439603,-2369.80821261,5.979e-05,2]
[394971453,1764233439614,-2369.80821261,5.979e-05,2]
[394971454,1764233439626,-2369.80821261,5.979e-05,2]
[394971455,1764233439637,-2369.80821261,5.979e-05,2]
[394971456,1764233439652,-2369.80821261,5.979e-05,2]
[394971457,1764233439663,-2369.80821261,5.979e-05,2]
[394971458,1764233439675,-2369.80821261,5.979e-05,2]
[394971459,1764233439686,-2369.80821261,5.979e-05,2]
[394971460,1764233439701,-2369.80821261,5.979e-05,2]
[394971461,1764233439712,-2369.80821261,5.979e-05,2]
[394971462,1764233439723,-2369.80821261,5.979e-05,2]
[394971463,1764233439737,-2369.80821261,5.979e-05,2]
[394971464,1764233439749,-2369.80821261,5.979e-05,2]
[394971465,1764233439760,-2369.80821261,5.979e-05,2]
[394971466,1764233439772,-500.0,5.979e-05,2]
[394971467,1764233439784,-2364.1658121,5.979e-05,2]
[394971468,1764233439796,-2364.1658121,5.979e-05,2]
[394971469,1764233439810,-2364.1658121,5.979e-05,2]
[394971470,1764233439821,-2364.1658121,5.979e-05,2]
[394971471,1764233439832,-2364.1658121,5.979e-05,2]
[394971472,1764233439854,-2364.1658121,5.979e-05,2]
[394971473,1764233439870,-2364.1658121,5.979e-05,2]
[394971474,1764233439883,-2364.1658121,5.979e-05,2]
[394971475,1764233439897,-2364.1658121,5.979e-05,2]
[394971476,1764233439911,-2364.1658121,5.979e-05,2]
[394971477,1764233439925,-2364.1658121,5.979e-05,2]
[394971478,1764233439939,-2364.1658121,5.979e-05,2]
[394971479,1764233439954,-2364.1658121,5.979e-05,2]
[394971480,1764233439968,-2364.1658121,5.979e-05,2]
[394971481,1764233439983,-2364.1658121,5.979e-05,2]
[394971482,1764233439996,-2364.1658121,5.979e-05,2]
[394971483,1764233440009,-2364.1658121,5.979e-05,2]
[394971484,1764233440022,-2364.1658121,5.979e-05,2]
[394971485,1764233440035,-2364.1658121,5.979e-05,2]
[394971486,1764233440047,-2364.1658121,5.979e-05,2]
[394971487,1764233440060,-2364.1658121,5.979e-05,2]
[394971488,1764233440074,-2364.1658121,5.979e-05,2]
[394971489,1764233440086,-1695.32967302,5.979e-05,2]
[394971532,1764233440714,-668.83613908,5.979e-05,2]
[394971534,1764233440725,-2364.1658121,5.979e-05,2]
[394971537,1764233440736,-2364.1658121,5.979e-05,2]
[394971539,1764233440747,-2364.1658121,5.979e-05,2]
[394971541,1764233440758,-2364.16581208,5.979e-05,2]
[394971543,1764233440769,-151.0,5.979e-05,2]
[394971545,1764233440780,-151.0,5.979e-05,2]
[394971548,1764233440791,-151.0,5.979e-05,2]
[394971550,1764233440802,-288.526723,5.979e-05,2]
[394971552,1764233440813,-183.3,5.979e-05,2]
[394971554,1764233440824,-963.446853,5.979e-05,2]
[394971556,1764233440835,-963.446853,5.979e-05,2]
[394971558,1764233440846,-963.446853,5.979e-05,2]
[394971560,1764233440857,-963.446853,5.979e-05,2]
[394971562,1764233440869,-963.446853,5.979e-05,2]
[394971564,1764233440880,-963.446853,5.979e-05,2]
[394971566,1764233440891,-338438.91825686,5.98e-05,2]
[394971577,1764233440994,171.0,0.00020949,120]
[394971606,1764233441907,-963.446853,5.979e-05,2]
[394971607,1764233441918,-963.446853,5.979e-05,2]
[394971608,1764233441928,-963.446853,5.979e-05,2]
[394971609,1764233441937,-963.446853,5.979e-05,2]
[394971610,1764233441947,-79481.55483174,5.98e-05,2]
[394971711,1764233444767,-963.446853,5.979e-05,2]
[394971713,1764233444777,-963.446853,5.979e-05,2]
[394971715,1764233444786,-22090.39274531,5.98e-05,2]
[394971762,1764233446461,-29009.67356212,5.98e-05,2]
[394971763,1764233446474,-581.50000002,5.98e-05,2]
[394971764,1764233446521,-2582.30630634,5.98e-05,2]
[394971765,1764233446572,-58917.68881604,5.98e-05,2]
[394971766,1764233446625,-112372.02301885,5.98e-05,2]
[394971790,1764233712340,164.0,0.000203,120]
[394971791,1764233713811,164.0,0.00021315,120]
[394971792,1764233732194,171.0,0.00019146,120]
[394971793,1764233733891,171.0,0.00020103,120]
[394971851,1764234013020,257.0,0.00020023,120]
[394971852,1764234014329,257.0,0.00021024,120]
[394971885,1764234268391,824.0,0.0002,30]
[394971895,1764234311661,172.0,0.00019724,120]
[394971897,1764234313200,172.0,0.00020711,120]
[394971942,1764234613902,172.0,0.00019752,120]
[394971943,1764234615212,172.0,0.00020739,120]
[394971944,1764234630999,183.0,0.00018736,120]
[394971976,1764234633225,-150.0,5.714e-05,2]
[394971977,1764234633235,-150.0,5.743e-05,2]
[394971978,1764234633245,-121.765,5.868e-05,2]
[394971979,1764234633256,-178.235,5.868e-05,2]
[394971980,1764234633265,-300.0,5.868e-05,2]
[394971981,1764234633275,-300.0,5.868e-05,2]
[394971982,1764234633284,-1200.0,5.868e-05,2]
[394971983,1764234633293,-500.0,5.868e-05,2]
[394971984,1764234633304,-500.0,5.868e-05,2]
[394971985,1764234633315,-500.0,5.868e-05,2]
[394971986,1764234633325,-500.0,5.868e-05,2]
[394971987,1764234633334,-308.22143701,5.868e-05,2]
[394971988,1764234633346,-500.0,5.868e-05,2]
[394971989,1764234633356,-500.0,5.868e-05,2]
[394971990,1764234633365,-500.0,5.868e-05,2]
[394971991,1764234633375,-500.0,5.868e-05,2]
[394971992,1764234633385,-500.0,5.868e-05,2]
[394971993,1764234633395,-500.0,5.868e-05,2]
[394971994,1764234633404,-500.0,5.868e-05,2]
[394971995,1764234633414,-500.0,5.868e-05,2]
[394971996,1764234633423,-369.86979212,5.868e-05,2]
[394971997,1764234633432,-500.0,5.868e-05,2]
[394971998,1764234633442,-500.0,5.868e-05,2]
[394971999,1764234633686,-195.81049561,5.868e-05,2]
[394972000,1764234633696,-500.0,5.868e-05,2]
[394972001,1764234633706,-500.0,5.868e-05,2]
[394972002,1764234633715,-207.3625481,5.868e-05,2]
[394972003,1764234633724,-500.0,5.868e-05,2]
[394972004,1764234633734,-500.0,5.868e-05,2]
[394972005,1764234633743,-500.0,5.868e-05,2]
[394972006,1764234633752,-500.0,5.868e-05,2]
[394972007,1764234633761,-500.0,5.868e-05,2]
[394972008,1764234633770,-500.0,5.868e-05,2]
[394972009,1764234633779,-500.0,5.868e-05,2]
[394972010,1764234633788,-500.0,5.868e-05,2]
[394972011,1764234633798,-500.0,5.868e-05,2]
[394972012,1764234633807,-500.0,5.868e-05,2]
[394972013,1764234633817,-500.0,5.868e-05,2]
[394972014,1764234633826,-500.0,5.868e-05,2]
[394972015,1764234633835,-477.42754665,5.868e-05,2]
[394972016,1764234633845,-500.0,5.868e-05,2]
[394972017,1764234633854,-500.0,5.868e-05,2]
[394972018,1764234633863,-500.0,5.868e-05,2]
[394972019,1764234633872,-500.0,5.871e-05,2]
[394972020,1764234633882,-500.0,5.871e-05,2]
[394972021,1764234633891,-151.0,5.871e-05,2]
[394972022,1764234633900,-500.0,5.871e-05,2]
[394972023,1764234633909,-500.0,5.871e-05,2]
[394972024,1764234633919,-500.0,5.871e-05,2]
[394972025,1764234633927,-167430.24367596,5.872e-05,2]
[394972026,1764234634076,183.0,0.00019673,120]
[394972027,1764234634326,183.0,0.00020656,120]
[394972041,1764234638669,-534.94906441,5.809e-05,2]
[394972042,1764234638681,-553.19985832,5.809e-05,2]
[394972047,1764234640881,-2428.92,5.809e-05,2]
[394972048,1764234640892,-515.46018018,5.809e-05,2]
[394972049,1764234640901,-500.0,5.868e-05,2]
[394972050,1764234640911,-500.0,5.868e-05,2]
[394972051,1764234640920,-500.0,5.868e-05,2]
[394972052,1764234640929,-500.0,5.868e-05,2]
[394972053,1764234640938,-484.60742482,5.868e-05,2]
[394972054,1764234640949,-47.92167809,5.868e-05,2]
[394972055,1764234640958,-500.0,5.868e-05,2]
[394972056,1764234640967,-500.0,5.868e-05,2]
[394972057,1764234640976,-500.0,5.868e-05,2]
[394972058,1764234640985,-73026.87603727,5.872e-05,2]
[394972100,1764234646732,-3012.41673245,5.872e-05,2]
[394972107,1764234646788,-18238.12740144,5.872e-05,2]
[394972115,1764234646848,-307714.49700016,5.872e-05,2]
[394972179,1764234790860,155.06909633,0.00021,120]
[394972181,1764234836167,894.63338577,0.00021177,120]
[394972182,1764234853671,5000.0,0.00014,10]
[394972184,1764234875908,5000.0,0.00014,10]
[394972186,1764234906457,174.0,0.00019999,120]
[394972187,1764234907685,174.0,0.00020999,120]
[394972190,1764234930161,191.0,0.00018949,120]
[394972191,1764234931808,191.0,0.00019897,120]
[394972192,1764234933516,191.0,0.00020892,120]
[394972271,1764235560510,1733.1696,0.0002,30]
[394972285,1764235708808,705.07173431,0.0002,120]
[394972288,1764235719973,410.00004093,0.0002,30]
[394972292,1764235809299,158.0,0.0002,30]
[394972374,1764235832265,-150.0,5.611e-05,2]
[394972376,1764235832275,-150.0,5.639e-05,2]
[394972404,1764235832526,-300.0,5.742e-05,2]
[394972406,1764235832536,-300.0,5.742e-05,2]
[394972408,1764235832546,-300.0,5.742e-05,2]
[394972410,1764235832556,-206.0,5.742e-05,2]
[394972412,1764235832566,-1200.0,5.742e-05,2]
[394972414,1764235832575,-500.0,5.743e-05,2]
[394972416,1764235832585,-216.19444453,5.743e-05,2]
[394972418,1764235832595,-500.36052734,5.743e-05,2]
[394972420,1764235832604,-288.32736267,5.743e-05,2]
[394972422,1764235832614,-500.0,5.743e-05,2]
[394972424,1764235832624,-500.0,5.743e-05,2]
[394972426,1764235832634,-500.0,5.743e-05,2]
[394972428,1764235832643,-500.0,5.743e-05,2]
[394972430,1764235832653,-500.0,5.743e-05,2]
[394972432,1764235832663,-500.0,5.743e-05,2]
[394972434,1764235832672,-500.0,5.743e-05,2]
[394972436,1764235832681,-500.0,5.743e-05,2]
[394972438,1764235832690,-500.0,5.743e-05,2]
[394972440,1764235832698,-500.0,5.743e-05,2]
[394972442,1764235832707,-500.0,5.743e-05,2]
[394972444,1764235832717,-500.0,5.743e-05,2]
[394972446,1764235832726,-500.0,5.743e-05,2]
[394972448,1764235832735,-500.0,5.743e-05,2]
[394972450,1764235832744,-500.0,5.743e-05,2]
[394972452,1764235832753,-500.0,5.743e-05,2]
[394972454,1764235832762,-500.0,5.743e-05,2]
[394972456,1764235832771,-389.11766546,5.743e-05,2]
[394972459,1764235832793,-110.88233454,5.743e-05,2]
[394972461,1764235832802,-501.34313787,5.743e-05,2]
[394972463,1764235832811,-361.34452759,5.743e-05,2]
[394972464,1764235832822,-138.65547241,5.743e-05,2]
[394972465,1764235832836,-440.47888466,5.743e-05,2]
[394972466,1764235832845,-500.0,5.743e-05,2]
[394972467,1764235832855,-33.00945567,5.763e-05,2]
[394972468,1764235832868,-466.99054433,5.763e-05,2]
[394972469,1764235832877,-232.84522327,5.764e-05,2]
[394972470,1764235832887,-2082.2591604,5.765e-05,2]
[394972471,1764235832898,-256.5916681,5.765e-05,2]
[394972485,1764235837705,-245.26250535,5.76e-05,2]
[394972486,1764235837714,-500.0,5.76e-05,2]
[394972487,1764235837723,-27.97674786,5.76e-05,2]
[394972488,1764235837734,-472.02325214,5.76e-05,2]
[394972489,1764235837743,-500.0,5.76e-05,2]
[394972490,1764235837752,-500.0,5.76e-05,2]
[394972491,1764235837761,-500.0,5.76e-05,2]
[394972492,1764235837770,-319.57674786,5.76e-05,2]
[394972493,1764235837781,-180.42325214,5.76e-05,2]
[394972494,1764235837790,-317.13907467,5.76e-05,2]
[394972495,1764235837799,-301.17829031,5.76e-05,2]
[394972582,1764235844443,-479.93502928,5.702e-05,2]
[394972700,1764235941040,161.628449,0.0001944,60]
[394972701,1764236318095,184.54487743,0.000215,120]
[394972707,1764236416004,5000.0,0.00014,10]
[394972736,1764236632104,201.0,5.525e-05,2]
[394972758,1764236846371,150.0,5.497e-05,2]
[394972761,1764236868567,150.0,5.525e-05,2]
[394972762,1764236891235,150.0,5.525e-05,2]
[394972763,1764236913575,150.0,5.525e-05,2]
[394972764,1764236935875,150.0,5.525e-05,2]
[394972765,1764236958269,150.0,5.525e-05,2]
[394972767,1764236980689,150.0,5.525e-05,2]
[394972768,1764237002925,150.0,5.525e-05,2]
[394972769,1764237025217,150.0,5.525e-05,2]